bitfinex/quotes_ETHUSD_20220123
["timestamp","ask_amount","ask_price","bid_price","bid_amount"]
[1642907331608,0.00113685,2406.9,2406.8,4.90011]
[1642907331861,0.00113685,2406.9,2406.8,8.87961]
[1642907334265,0.00113685,2406.9,2406.8,9.04571]
[1642907334661,0.00113685,2406.9,2406.8,8.38761]
[1642907334864,0.00113685,2406.9,2406.8,5.48761]
[1642907335062,0.00113685,2406.9,2406.8,1.50811]
[1642907335369,0.00113685,2406.9,2406.8,3.20811]
[1642907335804,0.00113685,2406.9,2406.8,3.0]
[1642907336601,0.00113685,2406.9,2406.8,2.0]
[1642907336803,0.00113685,2406.9,2406.8,3.0]
[1642907337406,0.00113685,2406.9,2406.8,3.2]
[1642907337707,3.685e-05,2406.9,2406.8,4.58664493]
[1642907338707,3.685e-05,2406.9,2406.8,0.17853493]
[1642907338907,3.685e-05,2406.9,2406.5,5.16819999]
[1642907338908,3.685e-05,2406.9,2406.5,1.22679999]
[1642907339258,3.685e-05,2406.9,2406.6,3.74846842]
[1642907339656,3.685e-05,2406.9,2406.7,0.0011]
[1642907340355,3.685e-05,2406.9,2406.7,1.0011]
[1642907341357,3.685e-05,2406.9,2406.8,0.20811]
[1642907341660,2.35824884,2407.5,2406.9,2.85076315]
[1642907341858,2.30824884,2407.9,2407.0,0.86621]
[1642907342058,0.00284212,2407.4,2407.0,2.16621]
[1642907342464,2.30824884,2407.9,2406.9,0.00076315]
[1642907342465,0.00227369,2407.3,2406.9,0.00076315]
[1642907342858,0.00170527,2407.2,2406.9,0.00076315]
[1642907343311,0.00113684,2407.1,2406.9,0.00076315]
[1642907343708,0.00454739,2407.7,2406.9,0.00076315]
[1642907344109,0.00397896,2407.6,2406.9,0.00076315]
[1642907344309,1.22262788,2407.5,2406.9,0.00076315]
[1642907344512,1.22603842,2407.5,2406.9,0.00076315]
[1642907344710,1.54783043,2407.1,2406.9,0.00076315]
[1642907344907,0.00341054,2407.5,2406.9,0.00076315]
[1642907346108,1.4659303,2407.2,2406.9,0.00076315]
[1642907346510,0.00113684,2407.1,2406.9,0.00076315]
[1642907346953,0.00454739,2407.7,2406.9,0.00076315]
[1642907347353,0.00397896,2407.6,2406.9,0.00076315]
[1642907347756,0.00341054,2407.5,2406.9,0.00076315]
[1642907347955,1.38262096,2407.3,2406.9,0.00076315]
[1642907348359,0.00170527,2407.2,2406.9,0.00076315]
[1642907348755,0.00113684,2407.1,2406.9,0.00076315]
[1642907349156,0.00227369,2407.3,2406.9,0.00076315]
[1642907349558,0.00170527,2407.2,2406.9,0.00076315]
[1642907349958,0.00113684,2407.1,2406.9,0.00076315]
[1642907350358,0.00341054,2407.5,2406.9,0.00076315]
[1642907351814,2.35803633,2407.4,2406.9,0.00076315]
[1642907352211,0.00227369,2407.3,2406.9,0.00076315]
[1642907352712,0.00170527,2407.2,2406.9,0.00076315]
[1642907353012,0.00113684,2407.1,2406.9,0.00076315]
[1642907353412,0.00227369,2407.3,2407.0,0.37421]
[1642907353615,0.00227369,2407.3,2407.2,2.80811]
[1642907353811,2.91809858,2408.1,2407.2,3.10811]
[1642907354111,0.00511581,2407.8,2406.9,1.20887315]
[1642907354358,1.38586071,2407.8,2406.9,0.00076315]
[1642907354558,2.35780602,2407.7,2407.0,0.00454739]
[1642907355259,3.65780602,2407.7,2407.0,0.00454739]
[1642907355458,1.31250571,2407.3,2407.0,0.00454739]
[1642907355958,2.35780602,2407.6,2407.0,0.00454739]
[1642907357059,1.14604636,2407.3,2407.0,0.00454739]
[1642907357460,2.35780602,2407.8,2407.0,0.00454739]
[1642907358514,1.40897403,2407.4,2407.0,0.00454739]
[1642907359514,2.35780602,2407.3,2407.0,0.00454739]
[1642907361322,1.26536118,2407.1,2407.0,0.00454739]
[1642907361518,1.56536118,2407.1,2407.0,0.00454739]
[1642907361757,1.26536118,2407.1,2407.0,0.00454739]
[1642907361962,3.9231672,2407.1,2407.0,0.00454739]
[1642907362160,3.6231672,2407.1,2407.0,0.00454739]
[1642907362857,2.35780602,2407.1,2407.0,0.00454739]
[1642907363257,3.35780602,2407.3,2407.0,0.00454739]
[1642907363656,3.65780602,2407.3,2407.0,0.00454739]
[1642907364056,1.11547947,2407.1,2407.0,0.00454739]
[1642907364260,3.65780602,2407.3,2407.0,0.00454739]
[1642907364457,2.35780602,2407.2,2407.0,0.00454739]
[1642907365260,1.25751918,2407.1,2407.0,0.00454739]
[1642907365514,2.35780602,2407.2,2407.0,0.00454739]
[1642907365710,2.35780602,2407.3,2407.0,0.00454739]
[1642907365905,3.35780602,2407.3,2407.0,0.00454739]
[1642907366308,3.65780602,2407.3,2407.0,0.00454739]
[1642907366512,2.35780602,2407.3,2407.0,0.00454739]
[1642907367008,0.00797401,2406.9,2406.1,1.01250773]
[1642907367208,0.00797401,2406.9,2406.2,3.53590035]
[1642907367410,0.00797401,2406.9,2406.2,3.54044774]
[1642907367609,0.00797401,2406.9,2406.2,0.00454739]
[1642907368011,0.00797401,2406.9,2406.1,0.00511581]
[1642907368212,0.00797401,2406.9,2406.0,0.00568423]
[1642907368412,1.11796659,2406.4,2405.8,0.00682108]
[1642907369660,2.35780602,2406.3,2405.8,0.00682108]
[1642907370065,3.35780602,2406.3,2405.8,0.00682108]
[1642907370262,3.65780602,2406.3,2405.5,0.00852635]
[1642907370864,2.35780602,2406.2,2405.5,0.00852635]
[1642907371064,2.35780602,2406.2,2405.4,4.89432635]
[1642907371263,2.35780602,2406.2,2405.5,3.53700618]
[1642907371463,0.00341054,2406.1,2405.5,3.53700618]
[1642907371865,0.00284212,2406.0,2405.5,3.53700618]
[1642907372269,0.00227369,2405.9,2405.5,3.53700618]
[1642907372468,0.00227369,2405.9,2405.3,0.00075788]
[1642907372664,1.56888727,2406.3,2405.3,0.00075788]
[1642907372665,0.00170527,2405.8,2405.3,0.00075788]
[1642907372865,0.00170527,2405.8,2405.3,3.53796385]
[1642907373118,0.00113685,2405.7,2405.3,0.00075788]
[1642907373511,1.48759617,2406.0,2405.3,0.00075788]
[1642907373912,0.00227369,2405.9,2405.3,0.00075788]
[1642907374319,0.00170527,2405.8,2405.3,0.00075788]
[1642907374718,1.48759617,2406.0,2405.3,0.00075788]
[1642907374719,0.00113685,2405.7,2405.3,0.00075788]
[1642907375116,0.00227369,2405.9,2405.3,0.00075788]
[1642907375516,0.00170527,2405.8,2405.3,0.00075788]
[1642907375915,0.00113685,2405.7,2405.3,0.00075788]
[1642907376317,0.00227369,2405.9,2405.3,0.00075788]
[1642907376773,1.48759617,2406.0,2405.3,0.00075788]
[1642907376774,0.00170527,2405.8,2405.3,0.00075788]
[1642907377174,0.00113685,2405.7,2405.3,0.00075788]
[1642907377572,0.00227369,2405.9,2405.3,0.00075788]
[1642907377972,0.00170527,2405.8,2405.3,0.00075788]
[1642907378271,0.00113685,2405.7,2405.3,0.00075788]
[1642907378673,1.48759617,2406.0,2405.3,0.00075788]
[1642907378674,0.00227369,2405.9,2405.3,0.00075788]
[1642907379074,1.48759617,2406.0,2405.3,0.00075788]
[1642907379075,0.00170527,2405.8,2405.3,0.00075788]
[1642907379475,1.48759617,2406.0,2405.3,0.00075788]
[1642907379476,0.00113685,2405.7,2405.3,0.00075788]
[1642907379874,0.00227369,2405.9,2405.3,0.00075788]
[1642907380274,0.00170527,2405.8,2405.3,0.00075788]
[1642907380815,2.08759617,2406.0,2405.3,0.00075788]
[1642907380816,0.00113685,2405.7,2405.3,0.00075788]
[1642907381014,2.36036371,2405.7,2405.3,0.00075788]
[1642907381215,1.13846973,2405.6,2405.3,0.00075788]
[1642907381817,2.35922686,2405.7,2405.3,0.00075788]
[1642907382219,2.35922686,2405.8,2405.3,0.00075788]
[1642907382617,0.00113685,2405.7,2405.3,0.00075788]
[1642907383019,1.42191871,2405.5,2405.3,0.00075788]
[1642907383619,0.00113685,2405.7,2405.3,0.00075788]
[1642907384760,2.35918955,2405.6,2405.3,0.00075788]
[1642907387165,0.00113685,2405.7,2405.3,0.00075788]
[1642907387358,0.00113685,2405.7,2405.4,0.05893999]
[1642907387561,0.00113685,2405.7,2405.6,4.29029566]
[1642907387759,2.83107224,2406.7,2405.7,0.06745732]
[1642907388213,0.00511581,2406.6,2405.7,1.00341055]
[1642907388412,1.3153705,2406.6,2405.8,0.03640579]
[1642907388612,2.36305519,2406.5,2405.7,1.00341055]
[1642907389012,0.00397896,2406.4,2405.7,1.00341055]
[1642907389413,0.00341054,2406.3,2405.7,0.00341055]
[1642907389717,2.36134992,2406.2,2405.7,0.00341055]
[1642907389912,3.65902784,2406.2,2405.7,0.00341055]
[1642907390212,0.00227369,2406.1,2405.7,0.00341055]
[1642907390616,3.65618573,2406.2,2405.7,0.00341055]
[1642907390617,0.00170527,2406.0,2405.7,0.00341055]
[1642907391016,2.35964465,2405.9,2405.7,0.00341055]
[1642907391415,2.35850781,2405.9,2405.7,0.00341055]
[1642907392272,2.35850781,2406.6,2405.8,0.20811]
[1642907392667,0.00454738,2406.5,2405.8,0.20811]
[1642907393065,0.00397896,2406.4,2405.7,0.00341055]
[1642907393464,1.23522416,2406.5,2405.7,0.00341055]
[1642907393465,2.36191835,2406.3,2405.7,0.00341055]
[1642907393865,0.00284211,2406.2,2405.7,0.00341055]
[1642907394066,1.29985361,2406.1,2405.7,0.00341055]
[1642907394267,1.3021273,2406.1,2405.7,0.00341055]
[1642907394468,0.00170527,2406.0,2405.7,0.00341055]
[1642907394871,0.00113684,2405.9,2405.7,0.00341055]
[1642907395268,0.00170527,2406.0,2405.7,0.00341055]
[1642907395713,0.00113684,2405.9,2405.7,0.00341055]
[1642907396113,0.00170527,2406.0,2405.7,0.00341055]
[1642907396517,2.83107224,2406.8,2405.7,0.00341055]
[1642907396518,2.83107224,2406.8,2405.9,3.37012144]
[1642907396915,0.00511581,2406.6,2406.0,1.0]
[1642907397316,2.36287694,2406.5,2406.1,0.20811]
[1642907397522,0.87512734,2407.3,2406.3,0.06112922]
[1642907397717,0.87512734,2407.3,2406.4,0.04639245]
[1642907397718,0.2498,2407.3,2406.4,0.04639245]
[1642907397916,0.00397897,2407.2,2406.4,0.04639245]
[1642907398212,0.00341054,2407.1,2406.4,0.04639245]
[1642907398614,0.00284212,2407.0,2406.5,0.20811]
[1642907398812,0.00284212,2407.0,2406.5,0.37421]
[1642907399012,1.3607939,2407.3,2406.5,0.67421]
[1642907399013,0.0022737,2406.9,2406.5,0.67421]
[1642907399293,0.00170527,2406.8,2406.5,0.67421]
[1642907399691,0.00113685,2406.7,2406.5,0.67421]
[1642907399891,0.00113685,2406.7,2406.4,0.31290148]
[1642907400096,0.00113685,2406.7,2406.4,0.01290148]
[1642907400291,0.00113685,2406.7,2406.6,3.05811]
[1642907400491,0.00113685,2406.7,2406.6,3.65811]
[1642907400692,0.00113685,2406.7,2406.6,4.65811]
[1642907402495,0.00113685,2406.7,2406.6,1.6]
[1642907402700,0.00113685,2406.7,2406.6,0.3]
[1642907403315,0.00113685,2406.7,2406.4,1.82101148]
[1642907403519,0.00113685,2406.7,2406.6,3.65811]
[1642907403520,3.685e-05,2406.7,2406.6,3.65811]
[1642907403718,3.685e-05,2406.7,2406.6,4.31621]
[1642907403918,3.685e-05,2406.7,2406.6,5.31621]
[1642907405021,3.685e-05,2406.7,2406.6,4.71621]
[1642907405224,3.685e-05,2406.7,2406.6,3.71621]
[1642907405821,3.685e-05,2406.7,2406.6,31.28117192]
[1642907406020,3.685e-05,2406.7,2406.6,27.74621]
[1642907406219,3.685e-05,2406.7,2406.6,31.28111985]
[1642907406621,3.685e-05,2406.7,2406.6,32.88111985]
[1642907407261,3.49981635,2408.4,2406.7,2.85]
[1642907407565,2.73107224,2408.6,2407.2,0.01206405]
[1642907407764,2.73107224,2408.6,2407.3,0.63019997]
[1642907407959,0.0096632,2408.4,2407.4,24.1961]
[1642907408171,0.0096632,2408.4,2407.5,1.492]
[1642907408360,0.00909478,2408.3,2407.6,0.1661]
[1642907408562,0.00909478,2408.3,2407.8,0.3]
[1642907408762,0.00852635,2408.2,2407.8,0.492]
[1642907408961,0.00852635,2408.2,2407.6,0.3]
[1642907409164,0.00795793,2408.1,2407.5,0.20811]
[1642907409563,1.12467025,2407.9,2407.3,0.13819997]
[1642907409763,1.12467025,2407.9,2407.1,1.1529]
[1642907409964,0.00625266,2407.8,2407.0,3.6539]
[1642907410162,0.00625266,2407.8,2406.7,0.1661]
[1642907410370,0.00568424,2407.7,2406.6,0.37421]
[1642907410619,1.41197367,2407.3,2406.5,3.8164]
[1642907410817,0.00511581,2407.6,2406.7,0.20811]
[1642907411016,0.00284212,2407.2,2406.6,3.9414]
[1642907411216,0.00454739,2407.5,2406.7,0.20811]
[1642907411416,0.00227369,2407.1,2406.6,4.2414]
[1642907411619,1.21193139,2408.0,2406.7,1.0]
[1642907411620,0.00397897,2407.4,2406.7,1.0]
[1642907411816,1.21193139,2408.0,2406.7,1.0]
[1642907411817,0.00170527,2407.0,2406.7,1.0]
[1642907412016,5.74359924,2407.2,2406.7,1.0]
[1642907412217,0.00113685,2406.9,2406.7,1.0]
[1642907412418,0.00227369,2407.1,2406.6,0.3]
[1642907412616,0.00227369,2407.1,2406.5,0.50921]
[1642907412819,4.2,2407.2,2406.5,0.20921]
[1642907412820,0.00170527,2407.0,2406.5,0.20921]
[1642907413219,0.00113685,2406.9,2406.5,0.0011]
[1642907413619,0.00227369,2407.1,2406.5,0.00113685]
[1642907414021,0.00170527,2407.0,2406.5,0.00113685]
[1642907414292,0.00227369,2407.1,2406.5,0.00113685]
[1642907414494,0.00113685,2406.9,2406.5,0.00113685]
[1642907414693,0.00170527,2407.0,2406.5,0.00113685]
[1642907414898,0.00227369,2407.1,2406.5,0.00113685]
[1642907415094,0.00113685,2406.9,2406.5,0.00113685]
[1642907415293,0.00170527,2407.0,2406.5,0.00113685]
[1642907415493,0.00227369,2407.1,2406.6,0.37421]
[1642907415699,0.00113685,2406.9,2406.6,0.37421]
[1642907415892,4.2,2407.2,2406.9,0.0022737]
[1642907416293,0.00113684,2407.1,2406.9,0.0022737]
[1642907418119,3.684e-05,2407.2,2407.1,2.85]
[1642907418319,3.684e-05,2407.2,2407.1,30.05815644]
[1642907418514,3.684e-05,2407.2,2407.1,11.48425644]
[1642907418715,3.684e-05,2407.2,2407.1,12.69585644]
[1642907418913,3.684e-05,2407.2,2407.1,9.36431309]
[1642907419113,3.684e-05,2407.2,2407.1,12.77542309]
[1642907420314,3.684e-05,2407.2,2407.1,12.76271]
[1642907420516,3.684e-05,2407.2,2407.1,11.2546]
[1642907421418,3.684e-05,2407.2,2407.1,11.46271]
[1642907421616,0.30719291,2409.0,2407.1,11.95471]
[1642907421617,0.14078191,2409.0,2407.1,11.95471]
[1642907421894,0.14078191,2409.0,2407.2,3.50547648]
[1642907422083,0.01023163,2408.9,2407.3,0.20811]
[1642907422286,1.46675291,2408.6,2407.4,1.43879475]
[1642907422486,1.46675291,2408.6,2407.4,1.4909]
[1642907422684,0.00795793,2408.5,2407.4,1.7909]
[1642907423083,0.00738951,2408.4,2407.1,7.193]
[1642907423489,1.14748749,2408.2,2407.1,11.39559021]
[1642907423684,1.14748749,2408.2,2407.1,11.22949021]
[1642907423884,0.00568424,2408.1,2407.1,9.84663802]
[1642907424385,0.00511582,2408.0,2407.1,10.14663802]
[1642907424587,0.00511582,2408.0,2407.2,1.0]
[1642907424787,0.00454739,2407.9,2407.2,1.0]
[1642907425188,0.00397897,2407.8,2407.3,2.70330113]
[1642907425388,0.00397897,2407.8,2407.4,1.20811]
[1642907425613,0.04419246,2409.0,2407.4,1.4111]
[1642907425815,0.04419246,2409.0,2407.7,0.05000001]
[1642907425816,1.10755427,2408.6,2407.7,0.05000001]
[1642907426410,1.11476166,2408.5,2407.7,0.05000001]
[1642907426813,1.01874062,2408.5,2407.7,0.05000001]
[1642907427012,1.01874062,2408.5,2407.8,0.00341054]
[1642907427213,0.96874062,2408.5,2407.8,0.00341054]
[1642907427615,0.96874062,2408.5,2407.5,0.00511581]
[1642907428212,1.21828266,2408.1,2407.5,0.25571338]
[1642907428414,1.21828266,2408.1,2407.5,0.00511581]
[1642907428616,1.49500753,2408.4,2407.6,0.00454739]
[1642907428815,1.0,2408.0,2407.5,0.00511581]
[1642907429016,1.0,2408.0,2407.4,0.00568423]
[1642907429263,1.0,2408.0,2407.3,1.69658945]
[1642907429264,1.0,2408.0,2407.5,0.00511581]
[1642907429459,1.0,2408.0,2407.4,0.00568423]
[1642907429865,1.0,2408.0,2407.7,0.25059757]
[1642907430160,1.0,2408.0,2407.8,0.00341054]
[1642907431267,1.0,2408.0,2407.4,0.00568423]
[1642907431460,1.0,2408.0,2407.8,1.5]
[1642907431664,1.18301855,2407.9,2407.8,1.5]
[1642907432563,2.18301855,2407.9,2407.8,1.5]
[1642907433017,1.18301855,2407.9,2407.8,1.5]
[1642907434014,1.0,2408.0,2407.8,1.5]
[1642907434418,1.0,2408.0,2407.9,0.00284212]
[1642907435514,1.0,2408.0,2407.7,0.00397896]
[1642907440515,1.0,2408.0,2407.4,0.00568423]
[1642907441116,1.0,2408.0,2407.4,0.2562818]
[1642907441520,1.0,2408.0,2407.5,0.00511581]
[1642907442218,0.95,2408.0,2407.5,0.00511581]
[1642907443921,0.95,2408.0,2407.6,3.53416723]
[1642907444366,0.95,2408.0,2407.7,0.00397896]
[1642907444964,0.95,2408.0,2407.5,0.00511581]
[1642907445168,1.25,2408.0,2407.5,0.00511581]
[1642907445362,1.55,2408.0,2407.2,0.00682108]
[1642907445561,1.55,2408.0,2406.9,0.0022737]
[1642907445562,1.55,2408.0,2407.0,0.00795793]
[1642907445761,0.95,2408.0,2407.0,0.00795793]
[1642907445961,1.25866715,2407.4,2407.0,0.00795793]
[1642907446166,0.95,2408.0,2407.0,0.2585555]
[1642907446365,0.95,2408.0,2407.1,3.53486035]
[1642907446566,0.95,2408.0,2407.1,3.5543563]
[1642907446764,0.95,2408.0,2407.2,0.00682108]
[1642907446966,0.95,2408.0,2407.3,3.53486035]
[1642907447366,0.95,2408.0,2407.4,0.00568423]
[1642907447568,0.00170527,2408.7,2407.8,2.85]
[1642907448015,0.00113685,2408.6,2407.9,1.166]
[1642907448318,0.00284212,2408.9,2408.1,24.03]
[1642907448518,0.00284212,2408.9,2408.3,0.01232483]
[1642907448715,0.00227369,2408.8,2408.3,0.01232483]
[1642907449117,0.00511581,2409.3,2408.3,0.01232483]
[1642907449521,0.00454739,2409.2,2408.3,1.01232483]
[1642907449715,0.00454739,2409.2,2408.3,1.31232483]
[1642907449917,0.00397896,2409.1,2408.3,1.31232483]
[1642907450118,2.5964513,2409.8,2408.3,1.31232483]
[1642907450119,2.5964513,2409.8,2408.3,1.61232483]
[1642907450318,8.3843,2410.0,2408.4,0.00397896]
[1642907450517,0.00170527,2409.4,2408.4,0.00397896]
[1642907450719,0.00170527,2409.4,2408.4,5.02787896]
[1642907450920,0.57640931,2409.9,2408.5,2.45]
[1642907451118,0.57640931,2409.9,2409.4,0.09602103]
[1642907451319,4.20284212,2409.8,2409.4,0.09602103]
[1642907451761,0.00227369,2409.7,2409.4,0.09602103]
[1642907452169,0.00170527,2409.6,2409.4,0.09602103]
[1642907452462,0.00113685,2409.5,2409.4,0.09602103]
[1642907456018,0.00113685,2409.5,2408.7,0.39658945]
[1642907456214,0.00113685,2409.5,2408.8,0.3]
[1642907456418,0.00113685,2409.5,2408.8,0.30284212]
[1642907456618,0.00113685,2409.5,2408.9,0.00227369]
[1642907457016,0.00113685,2409.5,2409.0,0.3466186]
[1642907457421,0.00113685,2409.5,2409.1,0.00113685]
[1642907459116,4.05113685,2409.8,2409.1,0.00113685]
[1642907459363,4.05113685,2409.8,2409.1,0.0022737]
[1642907459564,0.00113684,2409.7,2409.1,0.0022737]
[1642907459761,1.00113684,2409.7,2409.1,0.0022737]
[1642907459966,4.44471015,2409.7,2409.1,1.5]
[1642907460262,4.44471015,2409.7,2409.1,0.25]
[1642907460263,1.42923735,2409.2,2409.1,0.25]
[1642907460463,0.00113684,2409.7,2409.1,0.5966186]
[1642907460667,0.00113684,2409.7,2409.1,0.5988923]
[1642907462471,0.00113684,2409.7,2409.1,0.8988923]
[1642907463118,0.00113684,2409.7,2409.1,1.1988923]
[1642907465122,0.00113684,2409.7,2409.2,1.50629747]
[1642907465416,0.00113684,2409.7,2409.3,0.00113685]
[1642907465817,0.00113684,2409.7,2409.2,0.00170527]
[1642907469374,0.00113684,2409.7,2409.3,1.32387316]
[1642907469676,0.00113684,2409.7,2409.3,1.62387316]
[1642907469872,0.00113684,2409.7,2409.5,0.3]
[1642907470378,0.00113684,2409.7,2409.2,0.00170527]
[1642907471219,1.00113684,2409.7,2409.2,0.00170527]
[1642907471418,1.22823085,2409.5,2409.2,0.00170527]
[1642907472219,0.00113684,2409.7,2409.2,0.00170527]
[1642907476666,1.00113684,2409.7,2409.2,0.00170527]
[1642907477267,0.00113684,2409.7,2409.2,0.00170527]
[1642907478921,0.00113684,2409.7,2409.2,2.62070152]
[1642907479123,0.00113684,2409.7,2409.2,2.59767551]
[1642907479323,0.00113684,2409.7,2409.3,1.00113685]
[1642907479522,0.00113684,2409.7,2409.4,0.166]
[1642907479723,0.00113684,2409.7,2409.3,0.60113685]
[1642907480122,0.00113684,2409.7,2409.3,1.58659827]
[1642907480324,0.00113684,2409.7,2409.3,1.28659827]
[1642907480522,0.00113684,2409.7,2409.3,2.58659827]
[1642907480726,0.00113684,2409.7,2409.3,1.58659827]
[1642907480923,0.00113684,2409.7,2409.4,1.0]
[1642907481124,0.00113684,2409.7,2409.3,2.58659827]
[1642907481323,0.00113684,2409.7,2409.3,4.2352215]
[1642907481523,0.00113684,2409.7,2409.4,1.0]
[1642907482571,0.00113684,2409.7,2409.5,0.3]
[1642907482973,0.00113684,2409.7,2409.5,3.02320573]
[1642907483175,0.00113684,2409.7,2409.6,2.8]
[1642907483380,4.05113685,2409.8,2409.7,0.00227368]
[1642907485278,5.16202307,2409.8,2409.7,0.00227368]
[1642907485531,4.05113685,2409.8,2409.7,0.00227368]
[1642907487429,5.59268581,2409.8,2409.7,0.00227368]
[1642907488531,4.05113685,2409.8,2409.7,0.00227368]
[1642907489272,5.35113685,2409.8,2409.7,0.00227368]
[1642907489475,5.35113685,2409.8,2409.3,0.00113685]
[1642907489476,24.03,2409.6,2409.3,0.00113685]
[1642907489676,24.03,2409.4,2407.9,4.3342]
[1642907489974,24.03,2409.4,2408.0,3.53292729]
[1642907489975,24.03,2409.2,2408.0,3.53292729]
[1642907490273,1.34408443,2408.6,2408.2,0.3466186]
[1642907490474,1.34408443,2408.6,2408.0,0.00678423]
[1642907490776,1.34408443,2408.6,2407.5,0.00962635]
[1642907490777,0.5276,2408.5,2407.5,0.00962635]
[1642907490977,0.5276,2408.5,2407.6,3.53346892]
[1642907491178,0.8276,2408.5,2407.6,3.53346892]
[1642907491372,0.8276,2408.5,2408.1,0.3466186]
[1642907491772,0.5276,2408.5,2408.2,0.00564739]
[1642907491977,0.8276,2408.5,2408.2,0.00564739]
[1642907492173,0.8276,2408.5,2407.2,3.1219]
[1642907492174,3.6776,2408.5,2407.2,3.1219]
[1642907492375,3.54586201,2408.4,2407.3,3.53392686]
[1642907492573,4.54699886,2408.4,2407.4,3.53392686]
[1642907492774,5.58677226,2408.4,2407.3,0.00511581]
[1642907493016,0.6,2408.3,2407.5,0.00397896]
[1642907493221,0.6,2408.3,2407.8,0.11633873]
[1642907493416,0.6,2408.3,2407.0,3.54108591]
[1642907493626,0.5199,2408.2,2407.9,0.00170527]
[1642907493821,1.03979,2408.2,2407.1,0.00625266]
[1642907494117,1.24159344,2408.1,2407.6,1.5]
[1642907494317,1.54159344,2408.1,2407.8,0.11633873]
[1642907494517,1.84159344,2408.1,2407.8,0.11633873]
[1642907494717,2.84159344,2408.1,2407.9,0.00170527]
[1642907495319,2.84159344,2408.1,2407.7,0.00284211]
[1642907495519,26.87159344,2408.1,2407.7,0.00284211]
[1642907495919,26.87159344,2408.1,2407.8,0.11633873]
[1642907496121,0.00113685,2408.4,2407.8,0.11633873]
[1642907496326,0.00113685,2408.4,2407.9,0.00170527]
[1642907496770,0.00113685,2408.4,2408.1,1.5]
[1642907497368,1.28445545,2408.4,2408.1,1.5]
[1642907497567,0.00113685,2408.4,2408.1,1.5]
[1642907501320,0.00113685,2408.4,2407.9,0.00170527]
[1642907502518,4.20113685,2408.4,2407.9,0.00170527]
[1642907503524,1.0,2408.3,2407.9,0.00170527]
[1642907503723,1.0,2408.3,2407.6,0.00341054]
[1642907504028,1.0,2408.3,2407.1,0.15085428]
[1642907504029,1.30479349,2407.4,2407.2,0.00568423]
[1642907504681,1.90479349,2407.4,2407.0,0.00682108]
[1642907506098,2.42487349,2407.4,2407.0,0.00682108]
[1642907506480,3.42487349,2407.4,2407.0,0.00682108]
[1642907507483,3.42487349,2407.4,2406.7,0.00852635]
[1642907509524,2.90479349,2407.4,2406.7,0.00852635]
[1642907509922,1.30479349,2407.4,2406.7,0.00852635]
[1642907510725,1.60479349,2407.4,2406.7,0.00852635]
[1642907510925,1.90479349,2407.4,2406.7,0.00852635]
[1642907511327,1.3,2407.7,2406.7,0.00852635]
[1642907511523,0.6,2407.7,2406.7,0.00852635]
[1642907512373,1.87062914,2407.7,2406.7,0.00852635]
[1642907512873,6.07062914,2407.7,2406.7,0.00852635]
[1642907513081,1.0,2407.6,2406.7,0.00852635]
[1642907514874,1.41085613,2407.3,2406.7,0.00852635]
[1642907515528,1.0,2407.6,2406.7,0.00852635]
[1642907515723,4.2,2407.7,2406.7,0.00852635]
[1642907516923,1.52774751,2407.5,2406.7,0.00852635]
[1642907518322,1.52774751,2407.5,2406.7,0.00728209]
[1642907520693,3.06766623,2407.5,2406.7,0.00728209]
[1642907521095,1.0,2407.4,2406.7,0.00728209]
[1642907522094,1.4368312,2407.1,2406.7,0.00728209]
[1642907522496,1.7368312,2407.1,2406.7,0.00728209]
[1642907523032,2.0368312,2407.1,2406.7,0.00728209]
[1642907523220,2.0368312,2407.1,2406.6,0.00785051]
[1642907523823,1.34348615,2406.8,2406.6,0.00785051]
[1642907524021,1.94348615,2406.8,2406.3,0.00955578]
[1642907524222,1.94348615,2406.8,2405.5,3.6042]
[1642907524223,2.43548615,2406.8,2406.2,0.01012421]
[1642907524421,1.44165791,2406.7,2405.9,0.01182948]
[1642907524628,0.492,2406.6,2405.8,0.0123979]
[1642907524829,0.492,2406.6,2405.6,0.01353475]
[1642907524830,25.12910181,2406.6,2405.6,0.01353475]
[1642907525022,1.31733179,2406.3,2405.5,0.01410317]
[1642907525221,1.91733179,2406.3,2405.5,0.01410317]
[1642907525625,1.23188796,2406.1,2405.5,0.01410317]
[1642907526026,0.3,2406.0,2405.5,0.01410317]
[1642907526226,0.04161051,2406.3,2405.5,0.01410317]
[1642907527773,1.36943954,2406.0,2405.5,0.01410317]
[1642907528177,0.04161051,2406.3,2405.5,0.01410317]
[1642907528374,0.04161051,2406.3,2406.0,3.77237578]
[1642907528676,0.04161051,2406.3,2406.1,0.01069263]
[1642907529274,1.488932,2406.2,2406.1,0.01069263]
[1642907529676,1.788932,2406.2,2406.1,0.01069263]
[1642907529875,2.088932,2406.2,2406.1,0.01069263]
[1642907530721,0.08685181,2406.6,2406.1,0.01069263]
[1642907530931,0.8974,2406.8,2406.1,0.01069263]
[1642907531624,0.8974,2406.8,2406.6,1.44314746]
[1642907531822,8.85419246,2407.8,2406.6,1.44314746]
[1642907531823,2.82962337,2407.7,2406.7,2.85]
[1642907532022,2.82962337,2407.7,2406.8,0.23478942]
[1642907532222,2.82962337,2407.7,2406.8,0.24150309]
[1642907532423,2.82962337,2407.7,2406.9,0.00614524]
[1642907532823,2.82962337,2407.7,2406.9,0.30614524]
[1642907533221,4.2,2407.7,2407.0,0.00557682]
[1642907533421,4.2,2407.7,2407.0,1.2730229]
[1642907533824,4.2,2407.7,2407.1,0.0050084]
[1642907534278,4.2,2407.7,2406.8,0.23478942]
[1642907534279,4.2,2407.7,2407.0,0.20811]
[1642907534478,4.2,2407.7,2407.0,3.29915328]
[1642907534676,4.2,2407.7,2407.0,3.38806168]
[1642907534876,0.00284212,2407.6,2407.0,3.68806168]
[1642907535080,0.00284212,2407.6,2407.5,1.35369891]
[1642907535284,4.2,2407.7,2407.5,1.35369891]
[1642907535479,4.2,2407.7,2407.2,0.3]
[1642907535679,4.2,2407.7,2406.9,0.792]
[1642907535878,4.2,2407.7,2406.9,1.792]
[1642907536077,4.2,2407.7,2406.9,1.092]
[1642907536279,4.2,2407.7,2407.0,3.53456807]
[1642907536480,4.2,2407.7,2407.0,4.94761846]
[1642907536678,4.2,2407.7,2407.1,1.0]
[1642907536878,4.2,2407.7,2406.9,0.792]
[1642907537078,4.2,2407.7,2407.0,3.53458594]
[1642907537479,4.2,2407.7,2407.0,3.83458594]
[1642907537679,4.2,2407.7,2406.8,0.23478942]
[1642907537883,4.2,2407.7,2407.1,1.33639001]
[1642907538129,4.2,2407.7,2407.2,3.53460948]
[1642907538327,4.2,2407.7,2407.2,3.83460948]
[1642907538526,4.2,2407.7,2407.3,4.53460948]
[1642907538725,4.2,2407.7,2407.3,1.0]
[1642907538926,4.2,2407.7,2407.1,1.33639001]